[Event "43rd Blackpool Chess Conference 2019"]
[Site "Blackpool"]
[Date "2019.03.09"]
[Round "2.4"]
[White "Merriman, John"]
[Black "White, Stuart A"]
[Result "0-1"]
[ECO "D10"]
[WhiteElo "2238"]
[BlackElo "2108"]
[Annotator "NA"]
[PlyCount "158"]
[EventDate "2019.03.08"]
[EventType "swiss"]
[EventCountry "ENG"]
[SourceTitle "playchess.com"]
[Source "ChessBase"]
[SourceQuality "1"]
[TimeControl "6600+10"]

1. d4 {[%emt 0:00:00]} d5 {[%emt 0:00:00]} 2. c4 {[%emt 0:00:00]} c6 {[%emt 0:00:00]} 3. Nc3 {[%emt 0:00:02]} Nf6 {[%emt 0:00:00]} 4. e3 {[%emt 0:00:08]} Bf5 {[%emt 0:00:33]} 5. Qb3 {[%emt 0:09:16]} Qb6 {[%emt 0:00:14]} 6. c5 {[%emt 0:01:44]} Qc7 {[%emt 0:01:10]} 7. Na4 {[%emt 0:23:49]} Nbd7 {[%emt 0:01:52]} 8. Bd2 {[%emt 0:00:31]} e5 $15 {[%emt 0:10:34]} 9. Nf3 {[%emt 0:08:07]} e4 {[%emt 0:06:24]} 10. Ng1 {[%emt 0:06:03]} Be7 {[%emt 0:11:52]} 11. Ne2 {[%emt 0:02:43]} Bg4 {[%emt 0:04:59]} 12. Qc2 {[%emt 0:02:42]} O-O {[%emt 0:03:02]} 13. Nf4 {[%emt 0:05:44]} g5 {[%emt 0:06:08]} 14. Ne2 {[%emt 0:00:34]} Ne8 {[%emt 0:02:59]} 15. Nac3 {[%emt 0:01:27]} Bh5 {[%emt 0:04:18]} 16. h4 {[%emt 0:05:46]} Ng7 {[%emt 0:11:16]} 17. hxg5 {[%emt 0:02:49]} Bxg5 {[%emt 0:00:23]} 18. f4 {[%emt 0:05:50]} Bd8 {[%emt 0:15:55]} 19. Ng3 {[%emt 0:05:59]} Bg4 {[%emt 0:00:31]} 20. Be2 {[%emt 0:01:10]} Bxe2 {[%emt 0:00:47]} 21. Ncxe2 {[%emt 0:00:15]} f5 {[%emt 0:01:08]} 22. Nh5 {[%emt 0:00:16]} Nf6 {[%emt 0:00:50]} 23. Neg3 {[%emt 0:09:11]} Ng4 {[%emt 0:02:57]} 24. Qd1 {[%emt 0:01:31]} Qf7 {[%emt 0:00:52]} 25. Qe2 {[%emt 0:00:45]} Qg6 {[%emt 0:03:28]} 26. Rh3 {[%emt 0:01:33]} Ne6 {[%emt 0:04:37]} 27. Bc3 {[%emt 0:04:00]} Kf7 {[%emt 0:05:05]} 28. O-O-O {[%emt 0:04:32]} Be7 {[%emt 0:01:23]} 29. Bd2 {[%emt 0:04:00]} Ke8 {[%emt 0:01:31]} 30. Nh1 {[%emt 0:01:19]} Rg8 {[%emt 0:01:06]} 31. Rg1 {[%emt 0:00:27]} Kd7 {[%emt 0:01:38]} 32. Nf2 {[%emt 0:00:09]} Ng7 {[%emt 0:01:54]} 33. Ng3 {[%emt 0:01:30]} h5 {[%emt 0:00:24]} 34. Nxg4 {[%emt 0:00:29]} fxg4 {[%emt 0:01:26]} 35. Rhh1 {[%emt 0:00:32]} h4 {[%emt 0:00:08]} 36. Nf1 {[%emt 0:00:04]} Nf5 {[%emt 0:00:03]} 37. g3 {[%emt 0:00:30]} h3 {[%emt 0:00:40]} 38. Rh2 {[%emt 0:00:26]} Rab8 {[%emt 0:00:13]} 39. Bc3 {[%emt 0:00:21]} Qe8 {[%emt 0:00:55]} 40. Qc2 {[%emt 0:00:02]} b6 {[%emt 0:00:08]} 41. b4 {[%emt 0:00:09]} Qc8 {[%emt 0:00:33]} 42. Qa4 {[%emt 0:00:06]} Qb7 {[%emt 0:00:05]} 43. Rc2 {[%emt 0:00:17]} Bf6 {[%emt 0:00:35]} 44. Bb2 {[%emt 0:00:19]} Ra8 {[%emt 0:00:14]} 45. b5 {[%emt 0:00:08]} Rgc8 {[%emt 0:00:42]} 46. Rh1 {[%emt 0:00:13]} bxc5 {[%emt 0:00:50]} 47. bxc6+ {[%emt 0:00:09]} Qxc6 {[%emt 0:00:09]} 48. Qxc6+ {[%emt 0:00:08]} Rxc6 {[%emt 0:00:01]} 49. dxc5 {[%emt 0:00:02]} Bxb2+ {[%emt 0:00:07]} 50. Kxb2 {[%emt 0:00:01]} Rb8+ {[%emt 0:00:01]} 51. Kc1 {[%emt 0:00:07]} Rb5 {[%emt 0:00:01]} 52. Kd2 {[%emt 0:00:11]} Rbxc5 {[%emt 0:00:01]} 53. Rb2 {[%emt 0:00:04]} Rb6 {[%emt 0:00:02]} 54. Rxb6 {[%emt 0:00:50]} axb6 {[%emt 0:00:01]} 55. Nh2 {[%emt 0:00:00]} Nh6 {[%emt 0:00:37]} 56. Rb1 {[%emt 0:00:00]} Kc6 {[%emt 0:00:02]} 57. Rb2 {[%emt 0:00:00]} Ra5 {[%emt 0:00:27]} 58. Rc2+ {[%emt 0:00:09]} Kd7 {[%emt 0:00:04]} 59. Rb2 {[%emt 0:00:02]} b5 {[%emt 0:00:03]} 60. Kc3 {[%emt 0:00:27]} Kc6 {[%emt 0:00:15]} 61. Kd4 {[%emt 0:00:04]} Nf5+ {[%emt 0:00:14]} 62. Ke5 {[%emt 0:00:05]} Nxe3 {[%emt 0:00:02]} 63. Re2 {[%emt 0:00:08]} Nc4+ {[%emt 0:00:08]} 64. Ke6 {[%emt 0:00:07]} Ra3 {[%emt 0:00:09]} 65. Nxg4 {[%emt 0:00:11]} Rxg3 {[%emt 0:00:14]} 66. Ne5+ {[%emt 0:00:29]} Nxe5 {[%emt 0:00:13]} 67. fxe5 {[%emt 0:00:02]} Rg2 {[%emt 0:00:01]} 68. Re1 {[%emt 0:00:02]} h2 {[%emt 0:00:11]} 69. Rc1+ {[%emt 0:00:06]} Kb6 {[%emt 0:00:08]} 70. Rh1 {[%emt 0:00:32]} d4 {[%emt 0:00:01]} 71. Kd5 {[%emt 0:00:02]} d3 {[%emt 0:00:32]} 72. e6 {[%emt 0:00:16]} d2 {[%emt 0:00:23]} 73. e7 {[%emt 0:00:10]} Rg1 {[%emt 0:00:13]} 74. e8=Q {[%emt 0:00:28]} d1=Q+ {[%emt 0:00:04]} 75. Ke5 {[%emt 0:00:00]} Qa1+ {[%emt 0:00:23]} 76. Kf5 {[%emt 0:00:02]} Qf1+ {[%emt 0:00:09]} 77. Ke5 {[%emt 0:00:05]} Rg5+ {[%emt 0:00:21]} 78. Ke6 {[%emt 0:00:12]} Qf5+ {[%emt 0:00:02]} 79. Kd6 {[%emt 0:00:03]} Rg6+ {[%emt 0:01:29]} 0-1

[Event "43rd Blackpool Chess Conference 2019"]
[Site "Blackpool"]
[Date "2019.03.09"]
[Round "2.6"]
[White "Ellames, Roy"]
[Black "Gayson, Peter M"]
[Result "1/2-1/2"]
[ECO "A21"]
[WhiteElo "2035"]
[BlackElo "2121"]
[Annotator "NA"]
[PlyCount "35"]
[EventDate "2019.03.08"]
[EventType "swiss"]
[EventCountry "ENG"]
[SourceTitle "playchess.com"]
[Source "ChessBase"]
[SourceQuality "1"]
[TimeControl "6600+10"]

1. c4 {[%emt 0:00:00]} e5 {[%emt 0:24:25]} 2. Nc3 {[%emt 0:00:40]} d6 {[%emt 0:00:30]} 3. g3 {[%emt 0:01:13]} f5 {[%emt 0:02:16]} 4. d4 {[%emt 0:03:47]} Be7 {[%emt 0:04:06]} 5. dxe5 {[%emt 0:06:43]} dxe5 {[%emt 0:00:09]} 6. Qxd8+ {[%emt 0:00:07]} Bxd8 {[%emt 0:00:07]} 7. Bg2 {[%emt 0:00:59]} c6 {[%emt 0:02:59]} 8. b3 {[%emt 0:06:13]} Nf6 {[%emt 0:02:32]} 9. Ba3 {[%emt 0:02:52]} Be7 {[%emt 0:03:45]} 10. Bxe7 {[%emt 0:01:31]} Kxe7 {[%emt 0:00:07]} 11. e3 {[%emt 0:01:08]} Be6 {[%emt 0:01:49]} 12. Nge2 {[%emt 0:06:39]} Na6 {[%emt 0:00:55]} 13. O-O {[%emt 0:01:28]} Rad8 {[%emt 0:03:06]} 14. Rad1 {[%emt 0:21:47]} Nc5 {[%emt 0:05:30]} 15. Rxd8 {[%emt 0:15:50]} Rxd8 {[%emt 0:00:16]} 16. Rd1 {[%emt 0:00:14]} Rxd1+ {[%emt 0:01:21]} 17. Nxd1 {[%emt 0:00:03]} a5 {[%emt 0:04:21]} 18. Nec3 {[%emt 0:04:31]} 1/2-1/2

[Event "43rd Blackpool Chess Conference 2019"]
[Site "Blackpool"]
[Date "2019.03.09"]
[Round "2.7"]
[White "Milson, Samuel A"]
[Black "Sucikova, Svetlana"]
[Result "1-0"]
[ECO "B12"]
[WhiteElo "2096"]
[BlackElo "2110"]
[Annotator "NA"]
[PlyCount "43"]
[EventDate "2019.03.08"]
[EventType "swiss"]
[EventCountry "ENG"]
[SourceTitle "playchess.com"]
[Source "ChessBase"]
[SourceQuality "1"]
[TimeControl "6600+10"]

1. e4 {[%emt 0:00:00]} c6 {[%emt 0:04:51]} 2. d4 {[%emt 0:00:02]} d5 {[%emt 0:00:24]} 3. e5 {[%emt 0:00:15]} Bf5 {[%emt 0:00:52]} 4. h4 {[%emt 0:00:09]} h5 {[%emt 0:01:49]} 5. Bd3 {[%emt 0:00:09]} Bxd3 {[%emt 0:00:29]} 6. Qxd3 {[%emt 0:00:08]} e6 {[%emt 0:00:05]} 7. Bg5 {[%emt 0:00:23]} Qb6 {[%emt 0:04:30]} 8. Nd2 {[%emt 0:00:12]} c5 {[%emt 0:00:12]} 9. c4 {[%emt 0:04:21]} Nc6 {[%emt 0:02:09]} 10. Ngf3 {[%emt 0:03:24]} Qxb2 $16 {[%emt 0:12:39]} (10... cxd4 $14 11. cxd5 Nb4) 11. O-O {[%emt 0:08:42]} Nb4 {[%emt 0:03:41]} 12. Qe2 {[%emt 0:01:35]} cxd4 {[%emt 0:05:15]} 13. cxd5 {[%emt 0:06:29]} d3 {[%emt 0:00:22]} 14. Qe4 {[%emt 0:01:37]} exd5 {[%emt 0:01:02]} 15. Qf4 {[%emt 0:00:22]} Qc3 {[%emt 0:15:14]} 16. Rab1 {[%emt 0:08:17]} Rc8 {[%emt 0:09:37]} 17. Rb3 {[%emt 0:04:10]} Qc5 {[%emt 0:08:06]} 18. a3 {[%emt 0:01:19]} Nc2 {[%emt 0:00:05]} 19. Rxb7 {[%emt 0:00:14]} Be7 {[%emt 0:01:13]} 20. e6 {[%emt 0:09:33]} fxe6 {[%emt 0:07:09]} 21. Ne5 {[%emt 0:00:19]} Nf6 {[%emt 0:00:09]} 22. Qa4+ {[%emt 0:00:10]} 1-0

[Event "43rd Blackpool Chess Conference 2019"]
[Site "Blackpool"]
[Date "2019.03.09"]
[Round "2.8"]
[White "Camp, Imogen A L"]
[Black "Fallowfield, Jeremy R"]
[Result "0-1"]
[ECO "E94"]
[WhiteElo "1827"]
[BlackElo "2134"]
[Annotator "NA"]
[PlyCount "108"]
[EventDate "2019.03.08"]
[EventType "swiss"]
[EventCountry "ENG"]
[SourceTitle "playchess.com"]
[Source "ChessBase"]
[SourceQuality "1"]
[TimeControl "6600+10"]

1. d4 {[%emt 0:00:00]} Nf6 {[%emt 0:00:23]} 2. c4 {[%emt 0:00:00]} g6 {[%emt 0:00:16]} 3. Nc3 {[%emt 0:00:09]} Bg7 {[%emt 0:00:09]} 4. e4 {[%emt 0:00:26]} O-O {[%emt 0:00:31]} 5. Nf3 {[%emt 0:00:26]} d6 {[%emt 0:00:08]} 6. Be2 {[%emt 0:00:12]} Nbd7 {[%emt 0:00:33]} 7. O-O {[%emt 0:00:55]} e5 {[%emt 0:00:08]} 8. d5 {[%emt 0:11:28]} Nc5 {[%emt 0:00:46]} 9. Qc2 {[%emt 0:00:43]} a5 {[%emt 0:01:36]} 10. Be3 {[%emt 0:01:58] LiveBook: 46 Games} Ng4 {[%emt 0:03:35]} 11. Ne1 $17 {[%emt 0:08:23]} (11. Bxc5 $1 $14 dxc5 12. Rad1 (12. h3 Nf6 $11)) 11... Nxe3 {[%emt 0:02:58]} 12. fxe3 {[%emt 0:00:05]} f5 {[%emt 0:09:06]} 13. exf5 {[%emt 0:04:02]} gxf5 {[%emt 0:00:24]} 14. e4 {[%emt 0:12:26]} fxe4 {[%emt 0:08:47]} 15. Rxf8+ {[%emt 0:03:34]} Bxf8 {[%emt 0:01:28]} 16. Nxe4 {[%emt 0:09:18]} Bf5 {[%emt 0:00:34]} 17. Bf3 {[%emt 0:07:58]} Bxe4 {[%emt 0:06:06]} 18. Bxe4 {[%emt 0:00:43]} Qh4 {[%emt 0:00:13]} 19. Bf3 {[%emt 0:09:05]} e4 {[%emt 0:00:38]} 20. Be2 {[%emt 0:00:19]} Bg7 {[%emt 0:00:37]} 21. g3 {[%emt 0:06:04]} Bd4+ {[%emt 0:08:45]} 22. Kh1 {[%emt 0:02:32]} Qf6 {[%emt 0:01:27]} 23. Ng2 {[%emt 0:03:19]} Rf8 {[%emt 0:01:31]} 24. Rb1 {[%emt 0:14:32]} Qf2 {[%emt 0:03:56]} 25. Nf4 {[%emt 0:03:30]} Be5 {[%emt 0:03:15]} 26. Rf1 {[%emt 0:03:10]} Qe3 {[%emt 0:01:11]} 27. Ne6 {[%emt 0:05:33]} Rxf1+ {[%emt 0:14:14]} 28. Bxf1 {[%emt 0:00:03]} Bd4 {[%emt 0:06:32]} 29. Nxd4 {[%emt 0:01:18]} Qxd4 {[%emt 0:00:02]} 30. Qe2 {[%emt 0:00:08]} e3 {[%emt 0:00:50]} 31. b3 {[%emt 0:01:06]} Nd7 {[%emt 0:16:00]} 32. Qd3 {[%emt 0:00:52]} Qf6 {[%emt 0:00:40]} 33. Qe2 {[%emt 0:00:26]} Ne5 {[%emt 0:00:29]} 34. Bg2 {[%emt 0:00:04]} Qg5 {[%emt 0:00:22]} 35. Bh3 {[%emt 0:00:19]} h5 {[%emt 0:01:02]} 36. Be6+ {[%emt 0:00:14]} Kg7 {[%emt 0:00:01]} 37. Bh3 {[%emt 0:00:07]} c6 {[%emt 0:00:36]} 38. dxc6 {[%emt 0:00:02]} bxc6 {[%emt 0:00:04]} 39. Bg2 {[%emt 0:00:06]} c5 {[%emt 0:04:15]} 40. Bf3 {[%emt 0:00:15]} Kg6 {[%emt 0:10:03]} 41. Qd1 {[%emt 0:00:08]} Nxf3 {[%emt 0:02:03]} 42. Qxf3 {[%emt 0:00:01]} Qe5 {[%emt 0:00:20]} 43. Qe2 {[%emt 0:00:11]} d5 {[%emt 0:00:21]} 44. Qd3+ {[%emt 0:00:47]} Kf6 {[%emt 0:00:05]} 45. Qe2 {[%emt 0:00:10]} d4 {[%emt 0:00:18]} 46. Kg1 {[%emt 0:00:18]} Kg5 {[%emt 0:00:10]} 47. h4+ {[%emt 0:00:12]} Kg6 {[%emt 0:00:02]} 48. Kg2 {[%emt 0:00:02]} Qe4+ {[%emt 0:00:03]} 49. Qf3 {[%emt 0:00:15]} Qe6 {[%emt 0:00:23]} 50. Qe2 {[%emt 0:00:05]} Qf5 {[%emt 0:00:13]} 51. Kg1 {[%emt 0:00:12]} Qe4 {[%emt 0:00:03]} 52. Kh2 {[%emt 0:00:06]} d3 {[%emt 0:00:03]} 53. Qf1 {[%emt 0:00:09]} Qf5 {[%emt 0:00:20]} 54. Qg2 {[%emt 0:00:19]} Qf2 {[%emt 0:00:12]} 0-1

[Event "43rd Blackpool Chess Conference 2019"]
[Site "Blackpool"]
[Date "2019.03.09"]
[Round "2.9"]
[White "Harkness, Bryan"]
[Black "Hamer, Martyn"]
[Result "1/2-1/2"]
[ECO "C69"]
[WhiteElo "1935"]
[BlackElo "2064"]
[Annotator "NA"]
[PlyCount "40"]
[EventDate "2019.03.08"]
[EventType "swiss"]
[EventCountry "ENG"]
[SourceTitle "playchess.com"]
[Source "ChessBase"]
[SourceQuality "1"]
[TimeControl "6600+10"]

1. e4 {[%emt 0:00:00]} e5 {[%emt 0:00:00]} 2. Nf3 {[%emt 0:00:10]} Nc6 {[%emt 0:00:03]} 3. Bb5 {[%emt 0:00:12]} a6 {[%emt 0:00:05]} 4. Bxc6 {[%emt 0:00:47]} dxc6 {[%emt 0:00:05]} 5. O-O {[%emt 0:00:14]} f6 {[%emt 0:00:22]} 6. d4 {[%emt 0:00:34]} exd4 {[%emt 0:00:10]} 7. Nxd4 {[%emt 0:00:19]} Bd6 {[%emt 0:02:43]} 8. Nc3 {[%emt 0:03:01]} Ne7 {[%emt 0:00:46]} 9. Be3 {[%emt 0:02:20]} c5 {[%emt 0:02:25]} 10. Nde2 {[%emt 0:06:04]} O-O {[%emt 0:01:27]} 11. Bf4 {[%emt 0:02:37]} Be5 {[%emt 0:04:17]} 12. Bxe5 {[%emt 0:11:07]} fxe5 {[%emt 0:00:05]} 13. Qxd8 {[%emt 0:01:22]} Rxd8 {[%emt 0:00:04]} 14. Rfd1 {[%emt 0:00:13]} Be6 $11 {[%emt 0:02:07]} 15. f3 {[%emt 0:00:48]} b6 {[%emt 0:05:07]} 16. Kf2 {[%emt 0:02:27]} Rd6 {[%emt 0:10:02]} 17. Rxd6 {[%emt 0:03:47]} cxd6 {[%emt 0:00:04]} 18. Rd1 {[%emt 0:00:22]} Rd8 {[%emt 0:01:20]} 19. a3 {[%emt 0:02:35]} b5 {[%emt 0:03:24]} 20. Nd5 {[%emt 0:01:23]} Nxd5 {[%emt 0:03:07]} 1/2-1/2

[Event "43rd Blackpool Chess Conference 2019"]
[Site "Blackpool"]
[Date "2019.03.09"]
[Round "2.10"]
[White "Phillips, David A"]
[Black "Moyse, Nigel John"]
[Result "1-0"]
[ECO "A05"]
[WhiteElo "2040"]
[BlackElo "2061"]
[Annotator "NA"]
[PlyCount "127"]
[EventDate "2019.03.08"]
[EventType "swiss"]
[EventCountry "ENG"]
[SourceTitle "playchess.com"]
[Source "ChessBase"]
[SourceQuality "1"]
[TimeControl "6600+10"]

1. Nf3 {[%emt 0:00:32]} Nf6 {[%emt 0:01:17]} 2. g3 {[%emt 0:00:12]} g6 {[%emt 0:00:25]} 3. b4 {[%emt 0:00:06]} Bg7 {[%emt 0:00:47]} 4. Bb2 {[%emt 0:00:06]} d6 {[%emt 0:00:37]} 5. Bg2 {[%emt 0:00:25]} O-O {[%emt 0:00:44]} 6. O-O {[%emt 0:00:12]} c6 {[%emt 0:01:06]} 7. c4 {[%emt 0:01:56]} Qb6 {[%emt 0:08:58]} 8. Qb3 {[%emt 0:02:41]} Na6 {[%emt 0:01:07]} 9. a3 {[%emt 0:01:23]} Nc5 {[%emt 0:12:00]} 10. Qc2 {[%emt 0:04:31]} Ncd7 $14 {[%emt 0:05:08]} 11. d4 {[%emt 0:04:22]} Qc7 {[%emt 0:01:21]} 12. Nbd2 {[%emt 0:07:27]} Rb8 {[%emt 0:01:46]} 13. e4 {[%emt 0:03:26]} Ne8 {[%emt 0:02:27]} 14. Rfe1 {[%emt 0:04:48]} b6 {[%emt 0:10:40]} 15. e5 {[%emt 0:05:36]} c5 {[%emt 0:03:09]} 16. exd6 {[%emt 0:11:29]} exd6 {[%emt 0:02:17]} 17. dxc5 {[%emt 0:02:58]} bxc5 {[%emt 0:04:45]} 18. Bxg7 {[%emt 0:03:01]} Nxg7 {[%emt 0:00:15]} 19. b5 {[%emt 0:02:52]} Ne5 {[%emt 0:03:52]} 20. Nxe5 {[%emt 0:02:19]} dxe5 {[%emt 0:00:13]} 21. Qe4 {[%emt 0:01:18]} f6 {[%emt 0:06:42]} 22. Nb3 {[%emt 0:11:50]} Bb7 {[%emt 0:05:35]} 23. Qe3 {[%emt 0:08:41]} Bxg2 {[%emt 0:01:44]} 24. Kxg2 {[%emt 0:00:10]} Rbc8 {[%emt 0:00:26]} 25. a4 {[%emt 0:11:13]} Rfd8 {[%emt 0:09:13]} 26. a5 {[%emt 0:05:01]} Nf5 {[%emt 0:06:15]} 27. Qf3 {[%emt 0:00:31]} Rd6 {[%emt 0:00:55]} 28. a6 {[%emt 0:03:17]} Nd4 {[%emt 0:05:29]} 29. Qc3 {[%emt 0:03:23]} Rcd8 {[%emt 0:07:02]} 30. Na5 {[%emt 0:00:31]} Rb6 {[%emt 0:01:48]} 31. Nb7 {[%emt 0:01:16]} Rxb7 {[%emt 0:00:08]} 32. axb7 {[%emt 0:00:32]} Qxb7+ {[%emt 0:00:02]} 33. f3 {[%emt 0:00:05]} Re8 {[%emt 0:00:45]} 34. Ra6 {[%emt 0:03:06]} f5 {[%emt 0:01:37]} 35. Rea1 {[%emt 0:00:06]} e4 {[%emt 0:00:36]} 36. Rxa7 {[%emt 0:00:43]} exf3+ {[%emt 0:00:09]} 37. Kf2 {[%emt 0:02:23]} Re2+ {[%emt 0:00:58]} 38. Kf1 {[%emt 0:00:21]} Qe4 {[%emt 0:00:45]} 39. Ra8+ {[%emt 0:00:01]} Kg7 {[%emt 0:00:36]} 40. R8a7+ {[%emt 0:00:07]} Kh6 {[%emt 0:01:29]} 41. Qc1+ {[%emt 0:00:02]} g5 {[%emt 0:01:02]} 42. R1a6+ {[%emt 0:00:06]} Kh5 {[%emt 0:00:05]} 43. Rxh7+ {[%emt 0:00:29]} Kg4 {[%emt 0:00:00]} 44. h3+ {[%emt 0:00:07]} Kxg3 {[%emt 0:00:43]} 45. Qxg5+ {[%emt 0:00:01]} Qg4 {[%emt 0:00:15]} 46. hxg4 {[%emt 0:00:17]} fxg4 {[%emt 0:00:07]} 47. Qh4+ {[%emt 0:00:03]} Kf4 {[%emt 0:00:02]} 48. Rf6+ {[%emt 0:00:02]} Ke3 {[%emt 0:00:27]} 49. Qxg4 {[%emt 0:00:45]} Rf2+ {[%emt 0:00:01]} 50. Kg1 {[%emt 0:00:06]} Ne2+ {[%emt 0:00:03]} 51. Kh1 {[%emt 0:00:06]} Rf1+ {[%emt 0:00:03]} 52. Kh2 {[%emt 0:00:07]} Rf2+ {[%emt 0:00:21]} 53. Kh3 {[%emt 0:00:04]} Nd4 {[%emt 0:00:18]} 54. Re7+ {[%emt 0:00:06]} Kd3 {[%emt 0:00:05]} 55. Qe4+ {[%emt 0:00:05]} Kxc4 {[%emt 0:00:03]} 56. Rd7 {[%emt 0:01:01]} Re2 {[%emt 0:00:11]} 57. Rxd4+ {[%emt 0:00:03]} cxd4 {[%emt 0:00:03]} 58. Qxf3 {[%emt 0:00:01]} Re3 {[%emt 0:00:01]} 59. Qxe3 {[%emt 0:00:03]} dxe3 {[%emt 0:00:01]} 60. b6 {[%emt 0:00:05]} e2 {[%emt 0:00:01]} 61. Re6 {[%emt 0:00:01]} Kc5 {[%emt 0:00:01]} 62. b7 {[%emt 0:00:02]} e1=Q 63. Rxe1 {[%emt 0:00:00]} Kc6 {[%emt 0:00:07]} 64. b8=Q {[%emt 0:02:01]} 1-0

[Event "43rd Blackpool Chess Conference 2019"]
[Site "Blackpool"]
[Date "2019.03.09"]
[Round "2.11"]
[White "Tarr, Steve F"]
[Black "Isherwood, Paul"]
[Result "1-0"]
[ECO "D00"]
[WhiteElo "1680"]
[BlackElo "1982"]
[Annotator "NA RC"]
[PlyCount "83"]
[EventDate "2019.03.08"]
[EventType "swiss"]
[EventCountry "ENG"]
[SourceTitle "playchess.com"]
[Source "ChessBase"]
[SourceQuality "1"]
[TimeControl "6600+10"]

1. d4 {[%emt 0:01:08]} d5 {[%emt 0:00:04]} 2. Bf4 {[%emt 0:01:11]} Nf6 {[%emt 0:00:11]} 3. Nc3 {[%emt 0:00:33]} Bf5 {[%emt 0:03:32]} 4. f3 {[%emt 0:00:51]} e6 {[%emt 0:02:46]} 5. g4 {[%emt 0:00:28]} Bg6 {[%emt 0:00:23]} 6. h4 {[%emt 0:00:25]} h6 {[%emt 0:04:42]} 7. e3 {[%emt 0:02:51]} Bd6 {[%emt 0:04:21]} 8. Nh3 {[%emt 0:01:20]} c6 {[%emt 0:05:14]} 9. Bd3 {[%emt 0:01:18]} Bxd3 {[%emt 0:04:36]} 10. Qxd3 {[%emt 0:00:10]} Bxf4 {[%emt 0:07:48]} 11. Nxf4 {[%emt 0:00:59]} Nbd7 {[%emt 0:01:37]} 12. O-O-O {[%emt 0:00:50]} Nb6 {[%emt 0:06:16]} 13. g5 {[%emt 0:10:59]} Nfd7 {[%emt 0:02:03]} 14. g6 {[%emt 0:05:22]} Qe7 {[%emt 0:07:06]} 15. gxf7+ {[%emt 0:00:22]} Qxf7 {[%emt 0:00:06]} 16. Ng6 {[%emt 0:00:28]} Rg8 {[%emt 0:00:39]} 17. Rhg1 {[%emt 0:04:56]} O-O-O {[%emt 0:03:45]} 18. Kb1 {[%emt 0:07:01]} Nc4 {[%emt 0:05:18]} 19. e4 {[%emt 0:04:27]} Nf8 {[%emt 0:05:04]} 20. e5 {[%emt 0:12:27]} Nxg6 {[%emt 0:01:19]} 21. Rxg6 {[%emt 0:03:21]} Rdf8 {[%emt 0:07:03]} 22. Rdg1 {[%emt 0:05:18]} Qxf3 {[%emt 0:05:56]} 23. Rxe6 {[%emt 0:00:42]} Qxd3 {[%emt 0:04:09]} 24. cxd3 {[%emt 0:00:09]} Nd2+ {[%emt 0:00:07]} 25. Kc1 {[%emt 0:02:06]} Nf3 {[%emt 0:00:14]} 26. Rh1 {[%emt 0:06:26]} Nxd4 {[%emt 0:00:55]} 27. Rg6 {[%emt 0:01:20]} Re8 {[%emt 0:05:41]} 28. Rg4 {[%emt 0:01:53]} c5 {[%emt 0:05:25]} 29. Nxd5 {[%emt 0:01:36]} Rxe5 {[%emt 0:00:08]} 30. Nf6 {[%emt 0:00:39]} Rf8 {[%emt 0:04:30]} 31. Ne4 {[%emt 0:00:22]} Ne6 {[%emt 0:00:29]} 32. Kd2 {[%emt 0:03:33]} Rd8 {[%emt 0:00:47]} 33. Kc3 {[%emt 0:02:07]} h5 {[%emt 0:02:11]} 34. Rg3 {[%emt 0:00:28]} Nf4 {[%emt 0:00:19]} 35. Re1 {[%emt 0:01:50]} Red5 {[%emt 0:01:42]} 36. Ree3 {[%emt 0:03:23]} b6 {[%emt 0:00:58]} 37. Nf2 {[%emt 0:04:41]} R8d7 {[%emt 0:00:31]} 38. Re8+ {[%emt 0:01:14]} Kb7 {[%emt 0:00:24]} 39. Rge3 {[%emt 0:01:09]} g5 {[%emt 0:01:50]} 40. hxg5 {[%emt 0:01:50]} Rxg5 {[%emt 0:00:12]} 41. Rf3 {[%emt 0:00:29]} Nd5+ {[%emt 0:01:04]} 42. Kc4 {[%emt 0:02:01]} 1-0

[Event "43rd Blackpool Chess Conference 2019"]
[Site "Blackpool"]
[Date "2019.03.09"]
[Round "2.12"]
[White "Ther, Mate"]
[Black "Boswell, Jacob Connor"]
[Result "1-0"]
[ECO "C48"]
[WhiteElo "1895"]
[BlackElo "2043"]
[Annotator "NA"]
[PlyCount "73"]
[EventDate "2019.03.08"]
[EventType "swiss"]
[EventCountry "ENG"]
[SourceTitle "playchess.com"]
[Source "ChessBase"]
[SourceQuality "1"]
[TimeControl "6600+10"]

1. e4 {[%emt 0:00:00]} e5 {[%emt 0:00:00]} 2. Nf3 {[%emt 0:00:00]} Nc6 {[%emt 0:00:10]} 3. Nc3 {[%emt 0:00:02]} Nf6 {[%emt 0:00:22]} 4. Bb5 {[%emt 0:00:06]} Bc5 {[%emt 0:00:45]} 5. O-O {[%emt 0:00:47]} O-O {[%emt 0:02:38]} 6. Nxe5 {[%emt 0:03:23]} Nxe5 {[%emt 0:02:51]} 7. d4 {[%emt 0:00:12]} Bb4 {[%emt 0:03:22]} 8. dxe5 {[%emt 0:00:26]} Bxc3 {[%emt 0:01:02]} 9. bxc3 {[%emt 0:00:56]} Nxe4 {[%emt 0:03:36]} 10. Qd4 {[%emt 0:05:44]} f5 {[%emt 0:11:44]} 11. Bc4+ {[%emt 0:01:36]} Kh8 {[%emt 0:00:28]} 12. Ba3 {[%emt 0:00:11]} d6 {[%emt 0:06:33]} 13. f3 {[%emt 0:01:06]} c5 {[%emt 0:10:13]} 14. Qe3 {[%emt 0:02:08]} Qg5 {[%emt 0:13:42]} 15. Qd3 {[%emt 0:06:51]} dxe5 {[%emt 0:12:55]} 16. fxe4 {[%emt 0:00:21]} f4 {[%emt 0:00:10]} 17. Bxc5 {[%emt 0:02:03]} Rd8 {[%emt 0:00:59]} 18. Bd5 {[%emt 0:00:27]} Bg4 {[%emt 0:00:35]} 19. Kh1 {[%emt 0:01:17]} b6 {[%emt 0:01:27]} 20. Bf2 {[%emt 0:03:12]} Rd6 {[%emt 0:03:03]} 21. c4 {[%emt 0:02:01]} Rf8 {[%emt 0:01:31]} 22. c5 {[%emt 0:03:10]} Rh6 {[%emt 0:00:33]} 23. Bg1 {[%emt 0:01:49]} f3 {[%emt 0:06:38]} 24. g3 {[%emt 0:05:45]} f2 {[%emt 0:12:14]} 25. Rxf2 {[%emt 0:03:36]} Rxf2 {[%emt 0:00:47]} 26. Bxf2 {[%emt 0:00:08]} Qh5 {[%emt 0:06:53]} 27. h4 {[%emt 0:01:00]} Be2 {[%emt 0:02:23]} 28. Qe3 {[%emt 0:02:16]} Rf6 {[%emt 0:00:44]} 29. c6 {[%emt 0:01:29]} Qg4 {[%emt 0:00:27]} 30. Kh2 {[%emt 0:01:22]} g5 {[%emt 0:01:33]} 31. c7 {[%emt 0:03:06]} Ba6 {[%emt 0:00:34]} 32. Rg1 {[%emt 0:00:45]} Bc8 {[%emt 0:00:01]} 33. Rg2 {[%emt 0:01:20]} h6 {[%emt 0:01:51]} 34. Qc3 {[%emt 0:03:50]} Rg6 {[%emt 0:02:04]} 35. Qxe5+ {[%emt 0:00:50]} Kh7 {[%emt 0:00:20]} 36. Bd4 {[%emt 0:00:30]} Qh3+ {[%emt 0:00:27]} 37. Kg1 {[%emt 0:00:09]} 1-0